[Event "Early-Titled-Tuesday-Blitz-April-02-2024"]
[Site "Chess.com"]
[Date "2024.04.02"]
[Round "7"]
[White "alexrustemov"]
[Black "Firegrizzly"]
[Result "1/2-1/2"]
[WhiteElo "2879"]
[BlackElo "2669"]
[TimeControl "180+1"]
[EndTime "9:18:55 PDT"]
[Termination "Game drawn - insufficient material"]

1. d4 {[%clk 0:03:00.9]} 1... Nf6 {[%clk 0:02:56.9]} 2. c4 {[%clk 0:03:00.5]}
2... Nc6 {[%clk 0:02:55.4]} 3. Nf3 {[%clk 0:02:59.9]} 3... e6 {[%clk 0:02:55.1]}
4. a3 {[%clk 0:02:58.8]} 4... g6 {[%clk 0:02:54.7]} 5. g3 {[%clk 0:02:57.1]}
5... Bg7 {[%clk 0:02:55.2]} 6. Bg2 {[%clk 0:02:57.1]} 6... O-O {[%clk
0:02:55.8]} 7. b4 {[%clk 0:02:53.7]} 7... d5 {[%clk 0:02:50.7]} 8. Nbd2 {[%clk
0:02:52.7]} 8... b6 {[%clk 0:02:43.4]} 9. Bb2 {[%clk 0:02:51.6]} 9... Ne4 {[%clk
0:02:35]} 10. Rc1 {[%clk 0:02:50.2]} 10... Ne7 {[%clk 0:02:25.7]} 11. O-O {[%clk
0:02:45.6]} 11... Bb7 {[%clk 0:02:15.7]} 12. Qc2 {[%clk 0:02:44]} 12... Rc8
{[%clk 0:02:03.3]} 13. Nxe4 {[%clk 0:02:40.5]} 13... dxe4 {[%clk 0:02:02.8]} 14.
Ng5 {[%clk 0:02:41]} 14... Nf5 {[%clk 0:01:55.6]} 15. Nxe4 {[%clk 0:02:26.1]}
15... Nxd4 {[%clk 0:01:54.7]} 16. Bxd4 {[%clk 0:02:22.7]} 16... Bxe4 {[%clk
0:01:53.2]} 17. Bxe4 {[%clk 0:02:17.2]} 17... Qxd4 {[%clk 0:01:52.8]} 18. Rfd1
{[%clk 0:02:15.2]} 18... Qb2 {[%clk 0:01:52.7]} 19. Qxb2 {[%clk 0:02:04.3]}
19... Bxb2 {[%clk 0:01:51.6]} 20. Rb1 {[%clk 0:02:04.7]} 20... Be5 {[%clk
0:01:47.3]} 21. Rd7 {[%clk 0:02:02.7]} 21... Rfd8 {[%clk 0:01:46.4]} 22. Rbd1
{[%clk 0:02:01.1]} 22... Rxd7 {[%clk 0:01:44]} 23. Rxd7 {[%clk 0:02:02]} 23...
Bd6 {[%clk 0:01:44.2]} 24. Bc6 {[%clk 0:01:57.5]} 24... a5 {[%clk 0:01:38.1]}
25. c5 {[%clk 0:01:46.1]} 25... Bf8 {[%clk 0:01:13.5]} 26. Bb7 {[%clk
0:01:30.9]} 26... Rb8 {[%clk 0:01:13.6]} 27. Rxc7 {[%clk 0:01:30.4]} 27... axb4
{[%clk 0:01:11.4]} 28. axb4 {[%clk 0:01:28.4]} 28... bxc5 {[%clk 0:01:11.6]} 29.
b5 {[%clk 0:01:24.9]} 29... c4 {[%clk 0:01:11.8]} 30. Ba6 {[%clk 0:01:23.7]}
30... Bb4 {[%clk 0:01:02.7]} 31. Rxc4 {[%clk 0:01:22.6]} 31... Ba5 {[%clk
0:01:03.2]} 32. e3 {[%clk 0:01:17.6]} 32... h5 {[%clk 0:01:01.5]} 33. Kg2 {[%clk
0:01:10.8]} 33... Kf8 {[%clk 0:01:00.1]} 34. h3 {[%clk 0:01:07.9]} 34... f5
{[%clk 0:00:59.9]} 35. h4 {[%clk 0:01:05.5]} 35... Ke7 {[%clk 0:00:59.3]} 36.
Rc6 {[%clk 0:01:05.3]} 36... Rb6 {[%clk 0:00:57]} 37. Rc7+ {[%clk 0:01:04.3]}
37... Kf6 {[%clk 0:00:57.4]} 38. Rd7 {[%clk 0:00:54.2]} 38... e5 {[%clk
0:00:53.4]} 39. Kf3 {[%clk 0:00:43.6]} 39... Ke6 {[%clk 0:00:53]} 40. Rg7 {[%clk
0:00:38.8]} 40... Kf6 {[%clk 0:00:53.3]} 41. Rg8 {[%clk 0:00:35.8]} 41... e4+
{[%clk 0:00:50.8]} 42. Ke2 {[%clk 0:00:35.3]} 42... Rd6 {[%clk 0:00:51]} 43. Rc8
{[%clk 0:00:33.2]} 43... Rd2+ {[%clk 0:00:50.4]} 44. Kf1 {[%clk 0:00:33.3]}
44... Rd1+ {[%clk 0:00:49.7]} 45. Kg2 {[%clk 0:00:33.6]} 45... Rb1 {[%clk
0:00:48.9]} 46. Rc6+ {[%clk 0:00:31.8]} 46... Kg7 {[%clk 0:00:48.6]} 47. Rc2
{[%clk 0:00:30.5]} 47... Kf6 {[%clk 0:00:45.2]} 48. f3 {[%clk 0:00:29.1]} 48...
exf3+ {[%clk 0:00:41.7]} 49. Kxf3 {[%clk 0:00:30]} 49... Rb3 {[%clk 0:00:41.9]}
50. Rc6+ {[%clk 0:00:25.8]} 50... Kg7 {[%clk 0:00:41.3]} 51. Ke2 {[%clk
0:00:25.1]} 51... Rb2+ {[%clk 0:00:39.6]} 52. Kd3 {[%clk 0:00:25.2]} 52... Rb3+
{[%clk 0:00:39.8]} 53. Kd4 {[%clk 0:00:23.6]} 53... Kh6 {[%clk 0:00:35.9]} 54.
Re6 {[%clk 0:00:20.8]} 54... Rb2 {[%clk 0:00:32]} 55. Kc5 {[%clk 0:00:20.7]}
55... Rc2+ {[%clk 0:00:31.8]} 56. Kd5 {[%clk 0:00:19.7]} 56... Rd2+ {[%clk
0:00:30.6]} 57. Kc6 {[%clk 0:00:19.8]} 57... Rc2+ {[%clk 0:00:30.5]} 58. Kb7
{[%clk 0:00:19.7]} 58... Rc7+ {[%clk 0:00:30.4]} 59. Kb8 {[%clk 0:00:19.7]}
59... Rc3 {[%clk 0:00:27.1]} 60. b6 {[%clk 0:00:18.4]} 60... Bxb6 {[%clk
0:00:27.3]} 61. Rxb6 {[%clk 0:00:18.3]} 61... Rxe3 {[%clk 0:00:27.9]} 62. Bb5
{[%clk 0:00:16.5]} 62... Rxg3 {[%clk 0:00:27.9]} 63. Be8 {[%clk 0:00:16.4]}
63... f4 {[%clk 0:00:28]} 64. Rf6 {[%clk 0:00:15.9]} 64... Rg4 {[%clk
0:00:27.7]} 65. Kc7 {[%clk 0:00:15.2]} 65... Kg7 {[%clk 0:00:28.1]} 66. Rf7+
{[%clk 0:00:15.2]} 66... Kg8 {[%clk 0:00:28.5]} 67. Kd6 {[%clk 0:00:14.9]} 67...
Rxh4 {[%clk 0:00:28.7]} 68. Ke5 {[%clk 0:00:14.3]} 68... Rg4 {[%clk 0:00:28.5]}
69. Kf6 {[%clk 0:00:10.5]} 69... f3 {[%clk 0:00:26.3]} 70. Bd7 {[%clk
0:00:10.1]} 70... f2 {[%clk 0:00:25.4]} 71. Ke7 {[%clk 0:00:09.3]} 71... Re4+
{[%clk 0:00:24.6]} 72. Be6 {[%clk 0:00:09.5]} 72... Kh8 {[%clk 0:00:20]} 73.
Rxf2 {[%clk 0:00:09.5]} 73... g5 {[%clk 0:00:19.1]} 74. Kf6 {[%clk 0:00:09]}
74... Rf4+ {[%clk 0:00:19.4]} 75. Rxf4 {[%clk 0:00:06.7]} 75... gxf4 {[%clk
0:00:20.3]} 76. Kg5 {[%clk 0:00:06.5]} 76... f3 {[%clk 0:00:21.2]} 77. Kxh5
{[%clk 0:00:06.5]} 77... f2 {[%clk 0:00:22.1]} 78. Bc4 {[%clk 0:00:06.7]} 78...
f1=Q {[%clk 0:00:22.4]} 79. Bxf1 {[%clk 0:00:07.1]} 1/2-1/2

[Event "Early-Titled-Tuesday-Blitz-April-02-2024"]
[Site "Chess.com"]
[Date "2024.04.02"]
[Round "7"]
[White "PIwan"]
[Black "viktorskliarov"]
[Result "1/2-1/2"]
[WhiteElo "2452"]
[BlackElo "2615"]
[TimeControl "180+1"]
[EndTime "9:18:56 PDT"]
[Termination "Game drawn by repetition"]

1. c4 {[%clk 0:02:59.6]} 1... e5 {[%clk 0:03:00.2]} 2. Nc3 {[%clk 0:02:59.5]}
2... Bb4 {[%clk 0:03:00.6]} 3. Qc2 {[%clk 0:02:59.4]} 3... Bxc3 {[%clk
0:02:58.4]} 4. Qxc3 {[%clk 0:03:00.3]} 4... Nc6 {[%clk 0:02:55.9]} 5. Nf3 {[%clk
0:03:00.4]} 5... d6 {[%clk 0:02:52.9]} 6. d4 {[%clk 0:03:00.4]} 6... Qe7 {[%clk
0:02:38.4]} 7. dxe5 {[%clk 0:02:44.4]} 7... dxe5 {[%clk 0:02:37.2]} 8. a3 {[%clk
0:02:42.7]} 8... a5 {[%clk 0:02:34.8]} 9. b3 {[%clk 0:02:41.5]} 9... Nf6 {[%clk
0:02:03.2]} 10. Bb2 {[%clk 0:02:41.1]} 10... Nd7 {[%clk 0:02:03.4]} 11. e3
{[%clk 0:02:33.9]} 11... O-O {[%clk 0:02:02.3]} 12. Be2 {[%clk 0:02:33.9]} 12...
b6 {[%clk 0:01:54.6]} 13. O-O {[%clk 0:02:29]} 13... Bb7 {[%clk 0:01:54.7]} 14.
Rad1 {[%clk 0:02:26.8]} 14... Nc5 {[%clk 0:01:43.3]} 15. Nxe5 {[%clk 0:02:08]}
15... f6 {[%clk 0:00:48]} 16. Nxc6 {[%clk 0:01:53.1]} 16... Bxc6 {[%clk
0:00:46.6]} 17. f3 {[%clk 0:01:52.4]} 17... Rae8 {[%clk 0:00:35.6]} 18. e4
{[%clk 0:01:40]} 18... Qf7 {[%clk 0:00:35.8]} 19. Rfe1 {[%clk 0:01:35.3]} 19...
Qg6 {[%clk 0:00:33.6]} 20. Bf1 {[%clk 0:01:32]} 20... h5 {[%clk 0:00:33.5]} 21.
Bc1 {[%clk 0:01:25.5]} 21... h4 {[%clk 0:00:31.3]} 22. h3 {[%clk 0:01:23.2]}
22... Ne6 {[%clk 0:00:21.6]} 23. b4 {[%clk 0:01:19.6]} 23... axb4 {[%clk
0:00:20.6]} 24. axb4 {[%clk 0:01:20.3]} 24... Ng5 {[%clk 0:00:21]} 25. Bxg5
{[%clk 0:01:19.4]} 25... Qxg5 {[%clk 0:00:21.1]} 26. c5 {[%clk 0:01:12]} 26...
b5 {[%clk 0:00:16.3]} 27. Qe3 {[%clk 0:01:08.5]} 27... Qe5 {[%clk 0:00:13.6]}
28. Qf2 {[%clk 0:01:01.2]} 28... g5 {[%clk 0:00:13.1]} 29. Qd4 {[%clk
0:00:59.9]} 29... Rd8 {[%clk 0:00:09.4]} 30. Qxe5 {[%clk 0:00:49.2]} 30... fxe5
{[%clk 0:00:10.3]} 31. Kf2 {[%clk 0:00:47.2]} 31... Kf7 {[%clk 0:00:09.3]} 32.
g3 {[%clk 0:00:41.2]} 32... hxg3+ {[%clk 0:00:09.1]} 33. Kxg3 {[%clk 0:00:42.1]}
33... Kf6 {[%clk 0:00:09.5]} 34. Be2 {[%clk 0:00:38.6]} 34... Rh8 {[%clk
0:00:09.2]} 35. Rxd8 {[%clk 0:00:35.3]} 35... Rxd8 {[%clk 0:00:08.8]} 36. Rd1
{[%clk 0:00:35.8]} 36... Rxd1 {[%clk 0:00:07.8]} 37. Bxd1 {[%clk 0:00:36.7]}
37... Bd7 {[%clk 0:00:07.7]} 38. h4 {[%clk 0:00:29.7]} 38... gxh4+ {[%clk
0:00:07.5]} 39. Kxh4 {[%clk 0:00:30.6]} 39... c6 {[%clk 0:00:07.9]} 40. Bb3
{[%clk 0:00:28.9]} 40... Be8 {[%clk 0:00:07.7]} 41. Ba2 {[%clk 0:00:25.8]} 41...
Bd7 {[%clk 0:00:07.8]} 42. Kh5 {[%clk 0:00:24.3]} 42... Be8+ {[%clk 0:00:07.8]}
43. Kg4 {[%clk 0:00:22.6]} 43... Bd7+ {[%clk 0:00:08]} 44. Kg3 {[%clk
0:00:23.1]} 44... Kg5 {[%clk 0:00:08.2]} 45. Bb3 {[%clk 0:00:21.4]} 45... Be8
{[%clk 0:00:07.5]} 46. Bd1 {[%clk 0:00:20.7]} 46... Bd7 {[%clk 0:00:07.4]} 47.
Be2 {[%clk 0:00:21.1]} 47... Be8 {[%clk 0:00:06.7]} 48. Bf1 {[%clk 0:00:21.3]}
48... Bd7 {[%clk 0:00:07]} 49. Bg2 {[%clk 0:00:21.8]} 49... Be8 {[%clk
0:00:05.2]} 50. Bh3 {[%clk 0:00:22]} 50... Kf6 {[%clk 0:00:04.2]} 51. f4 {[%clk
0:00:21.7]} 51... exf4+ {[%clk 0:00:04]} 52. Kxf4 {[%clk 0:00:22.6]} 52... Ke7
{[%clk 0:00:04.4]} 53. e5 {[%clk 0:00:22.4]} 53... Bf7 {[%clk 0:00:04.6]} 54.
Bg2 {[%clk 0:00:19.6]} 54... Be8 {[%clk 0:00:05.2]} 55. Ke4 {[%clk 0:00:15.8]}
55... Bd7 {[%clk 0:00:05.5]} 56. Kd4 {[%clk 0:00:15.7]} 56... Be8 {[%clk
0:00:06]} 57. Bh3 {[%clk 0:00:15.7]} 57... Bf7 {[%clk 0:00:06]} 58. Bf5 {[%clk
0:00:14.1]} 58... Be8 {[%clk 0:00:04.7]} 59. Ke3 {[%clk 0:00:13.4]} 59... Bf7
{[%clk 0:00:03.6]} 60. Kf4 {[%clk 0:00:13]} 60... Be8 {[%clk 0:00:04]} 61. Kg5
{[%clk 0:00:13.3]} 61... Bf7 {[%clk 0:00:04.4]} 62. Kh6 {[%clk 0:00:13.7]} 62...
Be8 {[%clk 0:00:04.6]} 63. e6 {[%clk 0:00:14.2]} 63... Kf6 {[%clk 0:00:04.4]}
64. Bh3 {[%clk 0:00:12]} 64... Bg6 {[%clk 0:00:04.4]} 65. Bg2 {[%clk 0:00:03.3]}
65... Be8 {[%clk 0:00:04.5]} 66. Bh3 {[%clk 0:00:01.6]} 66... Bg6 {[%clk
0:00:04.8]} 67. Bg2 {[%clk 0:00:01.5]} 67... Be8 {[%clk 0:00:04.9]} 68. Bh3
{[%clk 0:00:02]} 1/2-1/2

[Event "Early-Titled-Tuesday-Blitz-April-02-2024"]
[Site "Chess.com"]
[Date "2024.04.02"]
[Round "7"]
[White "mightysmasher"]
[Black "Imagine_Drag0n"]
[Result "0-1"]
[WhiteElo "2578"]
[BlackElo "2794"]
[TimeControl "180+1"]
[EndTime "9:19:01 PDT"]
[Termination "Imagine_Drag0n won by checkmate"]

1. e4 {[%clk 0:03:00.9]} 1... c5 {[%clk 0:02:58.8]} 2. c3 {[%clk 0:03:00.8]}
2... Nf6 {[%clk 0:02:58.5]} 3. e5 {[%clk 0:03:01]} 3... Nd5 {[%clk 0:02:58.8]}
4. d4 {[%clk 0:03:01.9]} 4... cxd4 {[%clk 0:02:58.9]} 5. cxd4 {[%clk 0:03:02.7]}
5... d6 {[%clk 0:02:58.8]} 6. Nf3 {[%clk 0:03:03.2]} 6... e6 {[%clk 0:02:58.6]}
7. Bc4 {[%clk 0:03:03.5]} 7... Be7 {[%clk 0:02:57.9]} 8. O-O {[%clk 0:03:03.1]}
8... O-O {[%clk 0:02:57.7]} 9. Nc3 {[%clk 0:03:02.9]} 9... Nxc3 {[%clk
0:02:50.1]} 10. bxc3 {[%clk 0:03:02.5]} 10... dxe5 {[%clk 0:02:45.5]} 11. dxe5
{[%clk 0:03:02]} 11... Qxd1 {[%clk 0:02:44.3]} 12. Rxd1 {[%clk 0:03:01.6]} 12...
Nd7 {[%clk 0:02:41.5]} 13. Be3 {[%clk 0:03:00.5]} 13... Nc5 {[%clk 0:02:27]} 14.
Rab1 {[%clk 0:02:58.7]} 14... b6 {[%clk 0:02:26.8]} 15. Nd4 {[%clk 0:02:57]}
15... Bb7 {[%clk 0:02:23.5]} 16. Nb5 {[%clk 0:02:56.5]} 16... Ba6 {[%clk
0:02:05.7]} 17. Bf1 {[%clk 0:02:45.9]} 17... Bxb5 {[%clk 0:02:05.1]} 18. Bxb5
{[%clk 0:02:45.5]} 18... Rfd8 {[%clk 0:02:05]} 19. a4 {[%clk 0:02:40.3]} 19...
Ne4 {[%clk 0:02:04.2]} 20. Bd4 {[%clk 0:02:30.8]} 20... Rac8 {[%clk 0:02:01]}
21. Ba6 {[%clk 0:02:25.7]} 21... Nxc3 {[%clk 0:01:48.6]} 22. Bxc8 {[%clk
0:02:00.3]} 22... Nxd1 {[%clk 0:01:39.2]} 23. Rxd1 {[%clk 0:01:58.9]} 23... Rxc8
{[%clk 0:01:37.4]} 24. Be3 {[%clk 0:01:56.3]} 24... Rc7 {[%clk 0:01:18.6]} 25.
Rb1 {[%clk 0:01:52.2]} 25... h5 {[%clk 0:01:13.7]} 26. g3 {[%clk 0:01:49.2]}
26... Kh7 {[%clk 0:01:11]} 27. Rd1 {[%clk 0:01:42.3]} 27... Kg6 {[%clk
0:01:09.9]} 28. h3 {[%clk 0:01:34.3]} 28... Kf5 {[%clk 0:01:09.1]} 29. Kg2
{[%clk 0:01:34.4]} 29... g5 {[%clk 0:01:05.4]} 30. Re1 {[%clk 0:01:27.9]} 30...
Rc4 {[%clk 0:00:58]} 31. Rd1 {[%clk 0:01:26.6]} 31... Rc7 {[%clk 0:00:54.6]} 32.
Re1 {[%clk 0:01:23.8]} 32... Bc5 {[%clk 0:00:54.2]} 33. Bd2 {[%clk 0:01:17.2]}
33... Rd7 {[%clk 0:00:53]} 34. Bc1 {[%clk 0:01:14.9]} 34... Rd4 {[%clk
0:00:48.9]} 35. a5 {[%clk 0:00:56]} 35... Bb4 {[%clk 0:00:40.6]} 36. Re3 {[%clk
0:00:54.7]} 36... g4 {[%clk 0:00:26.7]} 37. hxg4+ {[%clk 0:00:50.2]} 37... hxg4
{[%clk 0:00:27.6]} 38. axb6 {[%clk 0:00:49.7]} 38... axb6 {[%clk 0:00:27.5]} 39.
Rb3 {[%clk 0:00:47.6]} 39... Bc5 {[%clk 0:00:20.1]} 40. Be3 {[%clk 0:00:47.1]}
40... Rd5 {[%clk 0:00:19]} 41. Bxc5 {[%clk 0:00:46.3]} 41... bxc5 {[%clk
0:00:19]} 42. Rb7 {[%clk 0:00:46.4]} 42... Kg6 {[%clk 0:00:19.3]} 43. f4 {[%clk
0:00:43.6]} 43... gxf3+ {[%clk 0:00:19]} 44. Kxf3 {[%clk 0:00:43.8]} 44... Rxe5
{[%clk 0:00:19.7]} 45. Kf4 {[%clk 0:00:43.9]} 45... Rd5 {[%clk 0:00:19.1]} 46.
Rc7 {[%clk 0:00:43.7]} 46... Kf6 {[%clk 0:00:18]} 47. g4 {[%clk 0:00:43]} 47...
Rd4+ {[%clk 0:00:17.9]} 48. Kf3 {[%clk 0:00:42.8]} 48... c4 {[%clk 0:00:17.9]}
49. g5+ {[%clk 0:00:39.6]} 49... Kg6 {[%clk 0:00:17.4]} 50. Ke3 {[%clk
0:00:39.8]} 50... Rd5 {[%clk 0:00:17.2]} 51. Ke4 {[%clk 0:00:35.1]} 51... Rxg5
{[%clk 0:00:17.1]} 52. Kf4 {[%clk 0:00:34.4]} 52... Rh5 {[%clk 0:00:15.8]} 53.
Kg4 {[%clk 0:00:33.8]} 53... f5+ {[%clk 0:00:13.9]} 54. Kg3 {[%clk 0:00:33.2]}
54... Rg5+ {[%clk 0:00:14.1]} 55. Kf4 {[%clk 0:00:31.7]} 55... Rg4+ {[%clk
0:00:14.5]} 56. Kf3 {[%clk 0:00:31.9]} 56... Re4 {[%clk 0:00:13.8]} 57. Rc8
{[%clk 0:00:31.3]} 57... Kf6 {[%clk 0:00:14.1]} 58. Rc5 {[%clk 0:00:31.2]} 58...
Rh4 {[%clk 0:00:13.7]} 59. Kg3 {[%clk 0:00:30.9]} 59... Rd4 {[%clk 0:00:14]} 60.
Kf3 {[%clk 0:00:31.1]} 60... e5 {[%clk 0:00:13.8]} 61. Ke3 {[%clk 0:00:30.8]}
61... f4+ {[%clk 0:00:13.5]} 62. Kf3 {[%clk 0:00:31.1]} 62... Kf5 {[%clk
0:00:14.4]} 63. Rc8 {[%clk 0:00:29]} 63... Rd3+ {[%clk 0:00:14.7]} 64. Ke2
{[%clk 0:00:28.9]} 64... Re3+ {[%clk 0:00:15.1]} 65. Kd2 {[%clk 0:00:27.3]}
65... c3+ {[%clk 0:00:15.4]} 66. Kd1 {[%clk 0:00:27.6]} 66... Ke4 {[%clk
0:00:15]} 67. Kc2 {[%clk 0:00:27.5]} 67... f3 {[%clk 0:00:14.3]} 68. Rc4+ {[%clk
0:00:26.8]} 68... Kf5 {[%clk 0:00:10.8]} 69. Rc8 {[%clk 0:00:26.5]} 69... e4
{[%clk 0:00:11.1]} 70. Rf8+ {[%clk 0:00:25.7]} 70... Kg4 {[%clk 0:00:11.3]} 71.
Rg8+ {[%clk 0:00:26.1]} 71... Kh3 {[%clk 0:00:11.6]} 72. Rh8+ {[%clk 0:00:26.2]}
72... Kg2 {[%clk 0:00:11.8]} 73. Rg8+ {[%clk 0:00:26.7]} 73... Kf1 {[%clk
0:00:12.1]} 74. Rf8 {[%clk 0:00:27.2]} 74... f2 {[%clk 0:00:12.5]} 75. Rh8
{[%clk 0:00:27]} 75... Ke1 {[%clk 0:00:12.7]} 76. Rh1+ {[%clk 0:00:25.3]} 76...
f1=Q {[%clk 0:00:12.4]} 77. Rxf1+ {[%clk 0:00:25.7]} 77... Kxf1 {[%clk
0:00:13.3]} 78. Kc1 {[%clk 0:00:26.3]} 78... Kf2 {[%clk 0:00:13.7]} 79. Kc2
{[%clk 0:00:25.8]} 79... Rd3 {[%clk 0:00:13.5]} 80. Kc1 {[%clk 0:00:25.7]} 80...
Ke3 {[%clk 0:00:14]} 81. Kc2 {[%clk 0:00:25.8]} 81... Kd4 {[%clk 0:00:14.7]} 82.
Kb3 {[%clk 0:00:25.5]} 82... e3 {[%clk 0:00:14.8]} 83. Kc2 {[%clk 0:00:25.5]}
83... e2 {[%clk 0:00:14.1]} 84. Kb3 {[%clk 0:00:25.7]} 84... e1=Q {[%clk
0:00:13.2]} 85. Ka4 {[%clk 0:00:25.9]} 85... Qb1 {[%clk 0:00:12.3]} 86. Ka5
{[%clk 0:00:25.5]} 86... Rd2 {[%clk 0:00:12.3]} 87. Ka4 {[%clk 0:00:25.5]} 87...
Ra2# {[%clk 0:00:12.1]} 0-1

[Event "Early-Titled-Tuesday-Blitz-April-02-2024"]
[Site "Chess.com"]
[Date "2024.04.02"]
[Round "7"]
[White "Zavgorodniy_Sergiy"]
[Black "BVB009"]
[Result "0-1"]
[WhiteElo "2650"]
[BlackElo "2844"]
[TimeControl "180+1"]
[EndTime "9:19:06 PDT"]
[Termination "BVB009 won by checkmate"]

1. d4 {[%clk 0:03:00.9]} 1... Nf6 {[%clk 0:02:59.1]} 2. c4 {[%clk 0:03:01.1]}
2... g6 {[%clk 0:02:58.2]} 3. Nc3 {[%clk 0:03:00.6]} 3... Bg7 {[%clk 0:02:58.8]}
4. e4 {[%clk 0:03:00.9]} 4... O-O {[%clk 0:02:59.1]} 5. Be2 {[%clk 0:03:01.5]}
5... d6 {[%clk 0:02:59.5]} 6. Nf3 {[%clk 0:03:01.8]} 6... e5 {[%clk 0:02:59]} 7.
O-O {[%clk 0:03:02.1]} 7... h6 {[%clk 0:02:58.8]} 8. Be3 {[%clk 0:02:53.8]} 8...
Ng4 {[%clk 0:02:52]} 9. Bc1 {[%clk 0:02:53.7]} 9... Nc6 {[%clk 0:02:51]} 10. d5
{[%clk 0:02:51.9]} 10... Ne7 {[%clk 0:02:50.4]} 11. Ne1 {[%clk 0:02:44.6]} 11...
f5 {[%clk 0:02:43.7]} 12. f3 {[%clk 0:02:33.4]} 12... Nf6 {[%clk 0:02:41.8]} 13.
Be3 {[%clk 0:02:33.6]} 13... f4 {[%clk 0:02:39.8]} 14. Bf2 {[%clk 0:02:34]}
14... g5 {[%clk 0:02:39.6]} 15. c5 {[%clk 0:02:34.4]} 15... Ng6 {[%clk
0:02:30.7]} 16. a4 {[%clk 0:02:33.9]} 16... h5 {[%clk 0:02:26.1]} 17. a5 {[%clk
0:02:33.4]} 17... a6 {[%clk 0:02:24.7]} 18. cxd6 {[%clk 0:02:33.4]} 18... cxd6
{[%clk 0:02:23.5]} 19. Na4 {[%clk 0:02:33.7]} 19... g4 {[%clk 0:02:14.6]} 20.
Nb6 {[%clk 0:02:33.4]} 20... Rb8 {[%clk 0:02:14.1]} 21. Nxc8 {[%clk 0:02:33.6]}
21... Qxc8 {[%clk 0:02:10.6]} 22. Rc1 {[%clk 0:02:31.7]} 22... Qd7 {[%clk
0:02:07]} 23. Bb6 {[%clk 0:02:31.6]} 23... Rbc8 {[%clk 0:02:06.3]} 24. Kh1
{[%clk 0:02:23.9]} 24... Rxc1 {[%clk 0:02:03.2]} 25. Qxc1 {[%clk 0:02:23.6]}
25... Rc8 {[%clk 0:02:04.1]} 26. Qd2 {[%clk 0:02:21.4]} 26... Bh6 {[%clk
0:02:03]} 27. Nd3 {[%clk 0:02:20.2]} 27... Kh7 {[%clk 0:01:59.3]} 28. Rc1 {[%clk
0:02:19.6]} 28... Nxe4 {[%clk 0:01:45.4]} 29. fxe4 {[%clk 0:02:07.8]} 29... f3
{[%clk 0:01:45]} 30. Be3 {[%clk 0:02:07.7]} 30... Bxe3 {[%clk 0:01:36.7]} 31.
Qxe3 {[%clk 0:02:03.8]} 31... fxe2 {[%clk 0:01:36.3]} 32. Qxe2 {[%clk
0:01:57.7]} 32... Rxc1+ {[%clk 0:01:35.4]} 33. Nxc1 {[%clk 0:01:58.6]} 33... Qc7
{[%clk 0:01:35.6]} 34. Nb3 {[%clk 0:01:51.6]} 34... Nf4 {[%clk 0:01:35.1]} 35.
Qe1 {[%clk 0:01:30.1]} 35... Qc2 {[%clk 0:01:31.7]} 36. Nd2 {[%clk 0:01:27.5]}
36... Qxb2 {[%clk 0:01:14.3]} 37. g3 {[%clk 0:01:14.5]} 37... Nh3 {[%clk
0:01:13.5]} 38. Qf1 {[%clk 0:01:09.4]} 38... Kg7 {[%clk 0:01:12.4]} 39. Qf5
{[%clk 0:01:05.2]} 39... Qc1+ {[%clk 0:00:52.4]} 40. Nf1 {[%clk 0:01:04.8]}
40... Ng5 {[%clk 0:00:48.2]} 41. Qd7+ {[%clk 0:00:46.5]} 41... Nf7 {[%clk
0:00:47.5]} 42. Qf5 {[%clk 0:00:43.3]} 42... Qg5 {[%clk 0:00:42.8]} 43. Qe6
{[%clk 0:00:41]} 43... Qf6 {[%clk 0:00:41.9]} 44. Qxf6+ {[%clk 0:00:35.9]} 44...
Kxf6 {[%clk 0:00:42.8]} 45. Nd2 {[%clk 0:00:31.4]} 45... Ke7 {[%clk 0:00:41.7]}
46. Kg2 {[%clk 0:00:27.9]} 46... Kd7 {[%clk 0:00:41.7]} 47. h4 {[%clk
0:00:15.8]} 47... Kc7 {[%clk 0:00:36.2]} 48. Nc4 {[%clk 0:00:16]} 48... Nh6
{[%clk 0:00:31.1]} 49. Kf2 {[%clk 0:00:14.4]} 49... Ng8 {[%clk 0:00:30.8]} 50.
Ke3 {[%clk 0:00:14.4]} 50... Nf6 {[%clk 0:00:31.5]} 51. Kd3 {[%clk 0:00:14.6]}
51... Nd7 {[%clk 0:00:32.1]} 52. Kc3 {[%clk 0:00:13.2]} 52... Nc5 {[%clk
0:00:31.1]} 53. Nd2 {[%clk 0:00:12.4]} 53... b6 {[%clk 0:00:30.5]} 54. axb6+
{[%clk 0:00:11.8]} 54... Kxb6 {[%clk 0:00:31.4]} 55. Nc4+ {[%clk 0:00:12.4]}
55... Kc7 {[%clk 0:00:31.2]} 56. Nd2 {[%clk 0:00:12.7]} 56... a5 {[%clk
0:00:31.8]} 57. Kc4 {[%clk 0:00:12.3]} 57... a4 {[%clk 0:00:31.2]} 58. Kb4
{[%clk 0:00:12.5]} 58... Kd7 {[%clk 0:00:29.1]} 59. Kc4 {[%clk 0:00:09.2]} 59...
a3 {[%clk 0:00:28.5]} 60. Kc3 {[%clk 0:00:04.9]} 60... Kc7 {[%clk 0:00:27.7]}
61. Kc2 {[%clk 0:00:02.1]} 61... Kb7 {[%clk 0:00:25.6]} 62. Kb1 {[%clk
0:00:02.6]} 62... Nd3 {[%clk 0:00:17.5]} 63. Ka2 {[%clk 0:00:02.3]} 63... Kb6
{[%clk 0:00:11.4]} 64. Kxa3 {[%clk 0:00:02.3]} 64... Kc5 {[%clk 0:00:12.3]} 65.
Kb3 {[%clk 0:00:02.3]} 65... Kd4 {[%clk 0:00:10.1]} 66. Nc4 {[%clk 0:00:02.6]}
66... Nc5+ {[%clk 0:00:10.1]} 67. Kb4 {[%clk 0:00:03.3]} 67... Nxe4 {[%clk
0:00:10.2]} 68. Kb5 {[%clk 0:00:03.9]} 68... Kxd5 {[%clk 0:00:10.3]} 69. Nb6+
{[%clk 0:00:03.9]} 69... Kd4 {[%clk 0:00:10.7]} 70. Kc6 {[%clk 0:00:04]} 70...
Nxg3 {[%clk 0:00:10.4]} 71. Kxd6 {[%clk 0:00:04.5]} 71... Nf5+ {[%clk 0:00:11]}
72. Ke6 {[%clk 0:00:04.8]} 72... Nxh4 {[%clk 0:00:11.8]} 73. Kf6 {[%clk
0:00:05.4]} 73... g3 {[%clk 0:00:12.3]} 74. Kg5 {[%clk 0:00:05.8]} 74... g2
{[%clk 0:00:13.1]} 75. Kxh4 {[%clk 0:00:05.8]} 75... g1=Q {[%clk 0:00:13.7]} 76.
Kxh5 {[%clk 0:00:06.7]} 76... Ke4 {[%clk 0:00:12.9]} 77. Nd7 {[%clk 0:00:06.4]}
77... Kf5 {[%clk 0:00:13.1]} 78. Nxe5 {[%clk 0:00:06.1]} 78... Qh1# {[%clk
0:00:13.2]} 0-1